Workbook

Sheet 2018-2019对比表 (hidden)
A2: 2018-2019年公开单位对比表
A4: 新单位编码 | B4: 序号 | C4: 2018年预算单位-旧 | D4: 涉改部门 | E4: 2019公开使用名称 | F4: 业务处室 | G4: 预算单位级次 | H4: 专员办确认纳入公开 | I4: 备注
A5: 100001 | B5: 1 | C5: 重庆市人民代表大会常务委员会办公厅 | E5: 重庆市人民代表大会常务委员会办公厅 | F5: 行政政法处 | G5: 一级
A6: 102001 | B6: 2 | C6: 重庆市人民政府办公厅 | E6: 重庆市人民政府办公厅 | F6: 行政政法处 | G6: 一级
A7: 101001 | B7: 3 | C7: 中国人民政治协商会议重庆市委员会办公厅 | E7: 中国人民政治协商会议重庆市委员会办公厅 | F7: 行政政法处 | G7: 一级
A8: 146001 | B8: 4 | C8: （原中国共产党重庆市纪律检查委员会） | D8: 改 | E8: 中共重庆市纪律检查委员会重庆市监察委员会机关（原中共重庆市纪律检查委员会） | F8: 行政政法处 | G8: 一级
A9: 147001 | B9: 5 | C9: 中共重庆市委组织部 | E9: 中共重庆市委组织部 | F9: 行政政法处 | G9: 一级
A10: 148001 | B10: 6 | C10: 中共重庆市委宣传部 | E10: 中共重庆市委宣传部 | F10: 教科文处 | G10: 一级
A11: 149001 | B11: 7 | C11: 中共重庆市委统战部 | E11: 中共重庆市委统战部 | F11: 行政政法处 | G11: 一级
A12: 150001 | B12: 8 | C12: 中国共产党重庆市委员会政法委员会 | E12: 中国共产党重庆市委员会政法委员会 | F12: 行政政法处 | G12: 一级
A13: 154001 | B13: 9 | C13: 中共重庆市委研究室 | E13: 中共重庆市委研究室 | F13: 行政政法处 | G13: 一级
A14: 153001 | B14: 10 | C14: 重庆市机构编制委员会办公室 | E14: 重庆市机构编制委员会办公室 | F14: 行政政法处 | G14: 一级
A15: 151001 | B15: 11 | C15: 中共重庆市直属机关工作委员会 | E15: 中共重庆市直属机关工作委员会 | F15: 行政政法处 | G15: 一级
A16: 155001 | B16: 12 | C16: （原中共重庆市委、重庆市人民政府信访办公室） | D16: 改 | E16: 重庆市信访办公室（原中共重庆市委、重庆市人民政府信访办公室） | F16: 行政政法处 | G16: 一级
A17: 335001 | B17: 13 | C17: 中共重庆市委老干部局 | E17: 中共重庆市委老干部局 | F17: 社保处 | G17: 一级
A18: 400001 | B18: 14 | C18: 重庆市发展和改革委员会 | E18: 重庆市发展和改革委员会 | F18: 经建处 | G18: 一级
A19: 105001 | B19: 15 | C19: 重庆市财政局 | E19: 重庆市财政局 | F19: 行政政法处 | G19: 一级
A20: 103001 | B20: 16 | C20: 重庆市经济和信息化委员会 | E20: 重庆市经济和信息化委员会 | F20: 产业发展处 | G20: 一级
A21: 250001 | B21: 17 | C21: 重庆市教育委员会 | E21: 重庆市教育委员会 | F21: 教科文处 | G21: 一级
A22: 254001 | B22: 18 | C22: （原重庆市科学技术委员会） | D22: 改 | E22: 重庆市科学技术局（原重庆市科学技术委员会） | F22: 教科文处 | G22: 一级
A23: 403001 | B23: 19 | C23: （原重庆市城乡建设委员会） | D23: 改 | E23: 重庆市住房和城乡建设委员会（原重庆市城乡建设委员会） | F23: 经建处 | G23: 一级
A24: 411001 | B24: 20 | C24: （原重庆市交通委员会） | D24: 改 | E24: 重庆市交通局（原重庆市交通委员会） | F24: 经建处 | G24: 一级
A25: 306001 | B25: 21 | C25: （原重庆市农业委员会） | D25: 改 | E25: 重庆市农业农村委员会（原重庆市农业委员会） | F25: 农业处 | G25: 一级
A26: 104001 | B26: 22 | C26: 重庆市商业委员会 | E26: 重庆市商务委员会 | F26: 产业发展处 | G26: 一级
A27: 157001 | B27: 23 | C27: 重庆市公安局 | E27: 重庆市公安局 | F27: 行政政法处 | G27: 一级
A28: 332001 | B28: 24 | C28: 重庆市民政局 | E28: 重庆市民政局 | F28: 社保处 | G28: 一级
A29: 169001 | B29: 25 | C29: 重庆市司法局 | E29: 重庆市司法局 | F29: 行政政法处 | G29: 一级
A30: 334001 | B30: 26 | C30: 重庆市人力资源和社会保障局 | E30: 重庆市人力资源和社会保障局 | F30: 社保处 | G30: 一级
A31: 410001 | B31: 27 | C31: （原重庆市国土资源和房屋管理局） | D31: 改 | E31: 重庆市住房和城乡建设委员会（原重庆市国土资源和房屋管理局） | F31: 经建处 | G31: 一级
A32: 414001 | B32: 28 | C32: （原重庆市环境保护局） | D32: 改 | E32: 重庆市生态环境局（原重庆市环境保护局） | F32: 经建处 | G32: 一级
A33: 416001 | B33: 29 | C33: （原重庆市规划局） | D33: 改 | E33: 重庆市规划和自然资源局（原重庆市规划局） | F33: 经建处 | G33: 一级
A34: 409001 | B34: 30 | C34: （原重庆市城市管理委员会） | D34: 改 | E34: 重庆市城市管理局（原重庆市城市管理委员会） | F34: 公用事业处 | G34: 一级
A35: 307001 | B35: 31 | C35: 重庆市水利局 | E35: 重庆市水利局 | F35: 农业处 | G35: 一级
A36: 257001 | B36: 32 | C36: （原重庆市文化委员会） | D36: 改 | E36: 重庆市文化和旅游发展委员会（原重庆市文化委员会） | F36: 教科文处 | G36: 一级
A37: 330001 | B37: 33 | C37: （原重庆市卫生和计划生育委员会） | D37: 改 | E37: 重庆市卫生健康委员会（原重庆市卫生和计划生育委员会） | F37: 社保处 | G37: 一级
A38: 107001 | B38: 34 | C38: 重庆市审计局 | E38: 重庆市审计局 | F38: 行政政法处 | G38: 一级
A39: 193001 | B39: 35 | C39: （原重庆市移民局） | D39: 改 | E39: 重庆市水利局（原重庆市移民局） | F39: 农业处 | G39: 一级 | I39: 2019年不再保留？
A40: 114001 | B40: 36 | C40: 重庆市民族宗教事务委员会 | E40: 重庆市民族宗教事务委员会 | F40: 行政政法处 | G40: 一级
A41: 152001 | B41: 37 | C41: 重庆市国有资产监督管理委员会 | E41: 重庆市国有资产监督管理委员会 | F41: 产业发展处 | G41: 一级
C42: 重庆市地方税务局 | E42: 重庆市税务局 | F42: 行政政法处 | I42: 2019年中央单位不纳入公开
A43: 109001 | B43: 38 | C43: （原重庆市工商行政管理局） | D43: 改 | E43: 重庆市市场监督管理局（原重庆市工商行政管理局） | F43: 行政政法处 | G43: 一级
A44: 110001 | B44: 39 | C44: （原重庆市质量技术监督局） | D44: 改 | E44: 重庆市市场监督管理局（原重庆市质量技术监督局） | F44: 行政政法处 | G44: 一级
A45: 262001 | B45: 40 | C45: 重庆市体育局 | E45: 重庆市体育局 | F45: 教科文处 | G45: 一级
A46: 182001 | B46: 41 | C46: （原重庆市安全生产监督管理局） | D46: 改 | E46: 重庆市应急管理局（原重庆市安全生产监督管理局） | F46: 产业发展处 | G46: 一级 | I46: 2019年归口经建处
A47: 111001 | B47: 42 | C47: 重庆市统计局 | E47: 重庆市统计局 | F47: 行政政法处 | G47: 一级
A48: 309001 | B48: 43 | C48: 重庆市林业局 | E48: 重庆市林业局 | F48: 农业处 | G48: 一级
A49: 115001 | B49: 44 | C49: （原重庆市旅游委） | D49: 改 | E49: 重庆市文化和旅游发展委员会（原重庆市旅游委） | F49: 产业发展处 | G49: 一级 | I49: 2019年归口教科文处
A50: 305001 | B50: 45 | C50: 重庆市扶贫开发办公室 | E50: 重庆市扶贫开发办公室 | F50: 农业处 | G50: 一级
A51: 119001 | B51: 46 | C51: （原重庆市政府法制办公室） | D51: 改 | E51: 重庆市司法局（原重庆市政府法制办公室） | F51: 行政政法处 | G51: 一级 | I51: 2019年不再保留？
A52: 190001 | B52: 47 | C52: 重庆市人民政府研究室 | E52: 重庆市人民政府研究室 | F52: 行政政法处 | G52: 一级
A53: 112001 | B53: 48 | C53: 重庆市机关事务管理局 | E53: 重庆市机关事务管理局 | F53: 行政政法处 | G53: 一级
A54: 189001 | B54: 49 | C54: 重庆市金融工作办公室 | D54: 改 | E54: 重庆市地方金融监督管理局（原重庆市金融工作办公室） | F54: 金融处 | G54: 一级
A55: 118001 | B55: 50 | C55: （原重庆市人民政府外事侨务办公室） | D55: 改 | E55: 重庆市政府外事办公室（原重庆市人民政府外事侨务办公室） | F55: 行政政法处 | G55: 一级
A56: 479001 | B56: 51 | C56: （原重庆市煤炭工业管理局） | D56: 改 | E56: 重庆市能源局（原重庆市煤炭工业管理局） | F56: 产业发展处 | G56: 一级 | I56: 2019年归口经建处
A57: 468001 | B57: 52 | C57: 重庆市科能高级技工学校 | E57: 重庆市科能高级技工学校 | F57: 产业发展处 | G57: 一级
A58: 475001 | B58: 53 | C58: 重庆市矿业工程学校 | E58: 重庆市矿业工程学校 | F58: 产业发展处 | G58: 一级
A59: 476001 | B59: 54 | C59: 重庆煤炭职业病医院 | E59: 重庆煤炭职业病医院 | F59: 产业发展处 | G59: 一级
A60: 303001 | B60: 55 | C60: （原重庆市农业综合开发办公室） | D60: 改 | E60: 重庆市农业农村委员会（原重庆市农业综合开发办公室） | F60: 农业处 | G60: 一级
A61: 337001 | B61: 56 | C61: 重庆市公务员管理局 | D61: 改 | E61: 重庆市公务员管理局 | F61: 社保处 | G61: 一级 | I61: 2019年不再单设？
A62: 331001 | B62: 57 | C62: （原重庆市食品药品监督管理局） | D62: 改 | E62: 重庆市市场监督管理局（原重庆市食品药品监督管理局） | F62: 社保处 | G62: 一级 | I62: 2019年归口行政政法处
A63: 338001 | B63: 58 | C63: 重庆市社会保险局 | E63: 重庆市社会保险局 | F63: 社保处 | G63: 一级
A64: 273001 | B64: 59 | C64: 重庆市文物局 | E64: 重庆市文物局 | F64: 教科文处 | G64: 一级
C65: 重庆市园林局 | E65: 重庆市城市管理局（原重庆市城市管理委员会） | F65: 公用事业处 | I65: 2019年合并到市城市局公开
A66: 265001 | B66: 60 | C66: 重庆市档案局 | E66: 重庆市档案局 | F66: 教科文处 | G66: 一级
A67: 127001 | B67: 61 | C67: 重庆市人民政府驻北京办事处 | E67: 重庆市人民政府驻北京办事处 | F67: 行政政法处 | G67: 一级
A68: 128001 | B68: 62 | C68: 重庆市人民政府驻上海办事处 | E68: 重庆市人民政府驻上海办事处 | F68: 行政政法处 | G68: 一级
A69: 129001 | B69: 63 | C69: 重庆市人民政府驻广东办事处 | E69: 重庆市人民政府驻广东办事处 | F69: 行政政法处 | G69: 一级
A70: 132001 | B70: 64 | C70: 重庆市人民政府驻四川办事处 | E70: 重庆市人民政府驻四川办事处 | F70: 行政政法处 | G70: 一级
A71: 301001 | B71: 65 | C71: 重庆市供销合作总社 | E71: 重庆市供销合作总社 | F71: 农业处 | G71: 一级
A72: 269001 | B72: 66 | C72: 重庆市文化市场行政执法总队 | E72: 重庆市文化市场行政执法总队 | F72: 教科文处 | G72: 一级
A73: 164001 | B73: 67 | C73: 重庆市高级人民法院 | E73: 重庆市高级人民法院 | F73: 行政政法处 | G73: 一级
A74: 165001 | B74: 68 | C74: 重庆市第一中级人民法院 | E74: 重庆市第一中级人民法院 | F74: 行政政法处 | G74: 一级
A75: 166001 | B75: 69 | C75: 重庆市第二中级人民法院 | E75: 重庆市第二中级人民法院 | F75: 行政政法处 | G75: 一级
A76: 167001 | B76: 70 | C76: 重庆市第三中级人民法院 | E76: 重庆市第三中级人民法院 | F76: 行政政法处 | G76: 一级
A77: 168001 | B77: 71 | C77: 重庆市第四中级人民法院 | E77: 重庆市第四中级人民法院 | F77: 行政政法处 | G77: 一级
A78: 187001 | B78: 72 | C78: 重庆市第五中级人民法院 | E78: 重庆市第五中级人民法院 | F78: 行政政法处 | G78: 一级
A79: 192001 | B79: 73 | C79: 重庆市铁路运输法院 | E79: 重庆市铁路运输法院 | F79: 行政政法处 | G79: 一级
A80: 159001 | B80: 74 | C80: 重庆市人民检察院 | E80: 重庆市人民检察院 | F80: 行政政法处 | G80: 一级
A81: 160001 | B81: 75 | C81: 重庆市人民检察院第一分院 | E81: 重庆市人民检察院第一分院 | F81: 行政政法处 | G81: 一级
A82: 161001 | B82: 76 | C82: 重庆市人民检察院第二分院 | E82: 重庆市人民检察院第二分院 | F82: 行政政法处 | G82: 一级
A83: 162001 | B83: 77 | C83: 重庆市人民检察院第三分院 | E83: 重庆市人民检察院第三分院 | F83: 行政政法处 | G83: 一级
A84: 163001 | B84: 78 | C84: 重庆市人民检察院第四分院 | E84: 重庆市人民检察院第四分院 | F84: 行政政法处 | G84: 一级
A85: 186001 | B85: 79 | C85: 重庆市人民检察院第五分院 | E85: 重庆市人民检察院第五分院 | F85: 行政政法处 | G85: 一级
A86: 191001 | B86: 80 | C86: 重庆市铁路运输检察院 | E86: 重庆市铁路运输检察院 | F86: 行政政法处 | G86: 一级
A87: 137001 | B87: 81 | C87: 中国国民党革命委员会重庆市委员会 | E87: 中国国民党革命委员会重庆市委员会 | F87: 行政政法处 | G87: 一级
A88: 138001 | B88: 82 | C88: 中国民主同盟重庆市委员会 | E88: 中国民主同盟重庆市委员会 | F88: 行政政法处 | G88: 一级
A89: 139001 | B89: 83 | C89: 中国民主建国会重庆市委员会 | E89: 中国民主建国会重庆市委员会 | F89: 行政政法处 | G89: 一级
A90: 140001 | B90: 84 | C90: 中国民主促进会重庆市委员会 | E90: 中国民主促进会重庆市委员会 | F90: 行政政法处 | G90: 一级
A91: 141001 | B91: 85 | C91: 中国农工民主党重庆市委员会 | E91: 中国农工民主党重庆市委员会 | F91: 行政政法处 | G91: 一级
A92: 142001 | B92: 86 | C92: 中国致公党重庆市委员会 | E92: 中国致公党重庆市委员会 | F92: 行政政法处 | G92: 一级
A93: 143001 | B93: 87 | C93: 九三学社重庆市委员会 | E93: 九三学社重庆市委员会 | F93: 行政政法处 | G93: 一级
A94: 134001 | B94: 88 | C94: 台湾民主自治同盟重庆市委员会 | E94: 台湾民主自治同盟重庆市委员会 | F94: 行政政法处 | G94: 一级
A95: 133001 | B95: 89 | C95: 重庆市总工会 | E95: 重庆市总工会 | F95: 行政政法处 | G95: 一级
A96: 135001 | B96: 90 | C96: 共青团重庆市委员会 | E96: 共青团重庆市委员会 | F96: 行政政法处 | G96: 一级
A97: 175001 | B97: 91 | C97: 重庆市妇女联合会 | E97: 重庆市妇女联合会 | F97: 行政政法处 | G97: 一级
A98: 255001 | B98: 92 | C98: 重庆市科学技术协会 | E98: 重庆市科学技术协会 | F98: 教科文处 | G98: 一级
A99: 267001 | B99: 93 | C99: 重庆市社会科学界联合会 | E99: 重庆市社会科学界联合会 | F99: 教科文处 | G99: 一级
A100: 144001 | B100: 94 | C100: 重庆市工商业联合会 | E100: 重庆市工商业联合会 | F100: 行政政法处 | G100: 一级
A101: 259001 | B101: 95 | C101: 重庆市文学艺术界联合会 | E101: 重庆市文学艺术界联合会 | F101: 教科文处 | G101: 一级
A102: 260001 | B102: 96 | C102: 重庆市作家协会 | E102: 重庆市作家协会 | F102: 教科文处 | G102: 一级
A103: 185001 | B103: 97 | C103: 重庆市归国华侨联合会 | E103: 重庆市归国华侨联合会 | F103: 行政政法处 | G103: 一级
A104: 333001 | B104: 98 | C104: 重庆市残疾人联合会 | E104: 重庆市残疾人联合会 | F104: 社保处 | G104: 一级
A105: 122001 | B105: 99 | C105: 中国国际贸易促进会重庆市委员会 | E105: 中国国际贸易促进会重庆市委员会 | F105: 产业发展处 | G105: 一级
A106: 136001 | B106: 100 | C106: 重庆市红十字会 | E106: 重庆市红十字会 | F106: 社保处 | G106: 一级
A107: 251001 | B107: 101 | C107: 中共重庆市委党校 | E107: 中共重庆市委党校 | F107: 教科文处 | G107: 一级
A108: 174001 | B108: 102 | C108: 中共重庆市委党史研究室 | E108: 中共重庆市委党史研究室 | F108: 行政政法处 | G108: 一级
A109: 268001 | B109: 103 | C109: 重庆市地方志办公室 | E109: 重庆市地方志办公室 | F109: 教科文处 | G109: 一级
A110: 258001 | B110: 104 | C110: 重庆市人民政府文史研究馆 | E110: 重庆市人民政府文史研究馆 | F110: 教科文处 | G110: 一级
A111: 252002 | B111: 105 | C111: 重庆社会主义学院 | E111: 重庆社会主义学院 | F111: 行政政法处 | G111: 一级
A112: 256001 | B112: 106 | C112: 重庆社会科学院 | E112: 重庆社会科学院 | F112: 教科文处 | G112: 一级
A113: 272001 | B113: 107 | C113: 重庆市科学技术研究院 | E113: 重庆市科学技术研究院 | F113: 教科文处 | G113: 一级
A114: 311001 | B114: 108 | C114: 重庆市农业科学院 | E114: 重庆市农业科学院 | F114: 农业处 | G114: 一级
A115: 312001 | B115: 109 | C115: 重庆市畜牧科学院 | E115: 重庆市畜牧科学院 | F115: 农业处 | G115: 一级
A116: 314001 | B116: 110 | C116: 重庆市水产科学研究所 | E116: 重庆市水产科学研究所 | F116: 农业处 | G116: 一级
A117: 371001 | B117: 111 | C117: 重庆市蚕业科学技术研究院 | E117: 重庆市蚕业科学技术研究院 | F117: 产业发展处 | G117: 一级
A118: 372001 | B118: 112 | C118: 重庆市蚕业管理总站 | E118: 重庆市蚕业管理总站 | F118: 产业发展处 | G118: 一级
A119: 415001 | B119: 113 | C119: 重庆市地质矿产勘查开发局 | E119: 重庆市地质矿产勘查开发局 | F119: 经建处 | G119: 一级
A120: 426001 | B120: 114 | C120: 重庆市地质矿产研究院 | E120: 重庆市地质矿产研究院 | F120: 经建处 | G120: 一级
A121: 412001 | B121: 115 | C121: 重庆一三六地质队 | E121: 重庆一三六地质队 | F121: 经建处 | G121: 一级
A122: 336001 | B122: 116 | C122: 重庆市老干部休养所 | E122: 重庆市老干部休养所 | F122: 社保处 | G122: 一级
A123: 474001 | B123: 117 | C123: 重庆市能源利用监测中心 | E123: 重庆市能源利用监测中心 | F123: 产业发展处 | G123: 一级
A124: 478001 | B124: 118 | C124: 重庆市工业设计促进中心 | E124: 重庆市工业设计促进中心 | F124: 产业发展处 | G124: 一级
A125: 370001 | B125: 119 | C125: 重庆市粮油质量监督检验站 | E125: 重庆市粮油质量监督检验站 | F125: 产业发展处 | G125: 一级
A126: 270004 | B126: 120 | C126: 重庆广播电视集团（总台） | E126: 重庆广播电视集团（总台） | F126: 教科文处 | G126: 一级
A127: 250005 | B127: 121 | C127: 西南政法大学 | E127: 西南政法大学 | F127: 教科文处 | G127: 二级单位
A128: 250006 | B128: 122 | C128: 重庆医科大学 | E128: 重庆医科大学 | F128: 教科文处 | G128: 二级单位
A129: 250007 | B129: 123 | C129: 重庆交通大学 | E129: 重庆交通大学 | F129: 教科文处 | G129: 二级单位
A130: 250008 | B130: 124 | C130: 重庆邮电大学 | E130: 重庆邮电大学 | F130: 教科文处 | G130: 二级单位
A131: 250009 | B131: 125 | C131: 重庆工商大学 | E131: 重庆工商大学 | F131: 教科文处 | G131: 二级单位
A132: 250010 | B132: 126 | C132: 重庆师范大学 | E132: 重庆师范大学 | F132: 教科文处 | G132: 二级单位
A133: 250011 | B133: 127 | C133: 四川美术学院 | E133: 四川美术学院 | F133: 教科文处 | G133: 二级单位
A134: 250012 | B134: 128 | C134: 四川外国语大学 | E134: 四川外国语大学 | F134: 教科文处 | G134: 二级单位
A135: 250013 | B135: 129 | C135: 重庆理工大学 | E135: 重庆理工大学 | F135: 教科文处 | G135: 二级单位
A136: 250014 | B136: 130 | C136: 重庆三峡学院 | E136: 重庆三峡学院 | F136: 教科文处 | G136: 二级单位
A137: 250015 | B137: 131 | C137: 重庆科技学院 | E137: 重庆科技学院 | F137: 教科文处 | G137: 二级单位
A138: 250016 | B138: 132 | C138: 重庆文理学院 | E138: 重庆文理学院 | F138: 教科文处 | G138: 二级单位
A139: 250017 | B139: 133 | C139: 长江师范学院 | E139: 长江师范学院 | F139: 教科文处 | G139: 二级单位
A140: 250018 | B140: 134 | C140: 重庆第二师范学院 | E140: 重庆第二师范学院 | F140: 教科文处 | G140: 二级单位
A141: 250019 | B141: 135 | C141: 重庆广播电视大学 | E141: 重庆广播电视大学 | F141: 教科文处 | G141: 二级单位
A142: 250021 | B142: 136 | C142: 重庆电子工程职业学院 | E142: 重庆电子工程职业学院 | F142: 教科文处 | G142: 二级单位
A143: 250048 | B143: 137 | C143: 重庆城市管理职业学院 | E143: 重庆城市管理职业学院 | F143: 教科文处 | G143: 二级单位
A144: 250050 | B144: 138 | C144: 重庆工业职业技术学院 | E144: 重庆工业职业技术学院 | F144: 教科文处 | G144: 二级单位
A145: 250051 | B145: 139 | C145: 重庆工程职业技术学院 | E145: 重庆工程职业技术学院 | F145: 教科文处 | G145: 二级单位
A146: 250053 | B146: 140 | C146: 重庆工贸职业技术学院 | E146: 重庆工贸职业技术学院 | F146: 教科文处 | G146: 二级单位
A147: 250054 | B147: 141 | C147: 重庆三峡医药高等专科学校 | E147: 重庆三峡医药高等专科学校 | F147: 教科文处 | G147: 二级单位
A148: 250055 | B148: 142 | C148: 重庆三峡职业学院 | E148: 重庆三峡职业学院 | F148: 教科文处 | G148: 二级单位
A149: 250057 | B149: 143 | C149: 重庆化工职业学院 | E149: 重庆化工职业学院 | F149: 教科文处 | G149: 二级单位
A150: 250058 | B150: 144 | C150: 重庆城市职业学院 | E150: 重庆城市职业学院 | F150: 教科文处 | G150: 二级单位
A151: 361001 | B151: 145 | C151: 重庆商务职业学院 | E151: 重庆商务职业学院 | F151: 产业发展处 | G151: 一级
A152: 362001 | B152: 146 | C152: 重庆财经职业学院 | E152: 重庆财经职业学院 | F152: 产业发展处 | G152: 一级
A153: 373001 | B153: 147 | C153: 重庆安全技术职业学院 | E153: 重庆安全技术职业学院 | F153: 产业发展处 | G153: 一级
A154: 470001 | B154: 148 | C154: 重庆电力高等专科学校 | E154: 重庆电力高等专科学校 | F154: 产业发展处 | G154: 一级
A155: 471001 | B155: 149 | C155: 重庆电力高级技工学校 | E155: 重庆电力高级技工学校 | F155: 产业发展处 | G155: 一级
A156: 363001 | B156: 150 | C156: 重庆市商务高级技工学校 | E156: 重庆市商务高级技工学校 | F156: 产业发展处 | G156: 一级
A157: 450001 | B157: 151 | C157: 重庆财政学校 | E157: 重庆财政学校 | F157: 教科文处 | G157: 一级
A158: 454001 | B158: 152 | C158: 重庆市轻工业学校 | E158: 重庆市轻工业学校 | F158: 产业发展处 | G158: 一级
A159: 455001 | B159: 153 | C159: 四川仪表工业学校 | E159: 四川仪表工业学校 | F159: 产业发展处 | G159: 一级
A160: 457001 | B160: 154 | C160: 重庆市工业学校 | E160: 重庆市工业学校 | F160: 产业发展处 | G160: 一级
A161: 459001 | B161: 155 | C161: 重庆建筑高级技工学校 | E161: 重庆建筑高级技工学校 | F161: 产业发展处 | G161: 一级
A162: 461001 | B162: 156 | C162: 重庆市机械高级技工学校 | E162: 重庆市机械高级技工学校 | F162: 产业发展处 | G162: 一级
A163: 463001 | B163: 157 | C163: 重庆市工贸高级技工学校 | E163: 重庆市工贸高级技工学校 | F163: 产业发展处 | G163: 一级
A164: 465001 | B164: 158 | C164: 重庆市工业高级技工学校 | E164: 重庆市工业高级技工学校 | F164: 产业发展处 | G164: 一级
A165: 466001 | B165: 159 | C165: 重庆建材技工学校 | E165: 重庆建材技工学校 | F165: 产业发展处 | G165: 一级
A166: 467001 | B166: 160 | C166: 重庆机械电子高级技工学校 | E166: 重庆机械电子高级技工学校 | F166: 产业发展处 | G166: 一级
A167: 469001 | B167: 161 | C167: 重庆市铁路运输高级技工学校 | E167: 重庆市铁路运输高级技工学校 | F167: 产业发展处 | G167: 一级
A168: 250059 | B168: 162 | C168: 重庆幼儿师范高等专科学校 | E168: 重庆幼儿师范高等专科学校 | F168: 教科文处 | G168: 二级单位
A169: 601001 | B169: 163 | C169: 重庆市渝中区人民法院 | E169: 重庆市渝中区人民法院 | F169: 行政政法处 | G169: 一级
A170: 602001 | B170: 164 | C170: 重庆市江北区人民法院 | E170: 重庆市江北区人民法院 | F170: 行政政法处 | G170: 一级
A171: 603001 | B171: 165 | C171: 重庆市沙坪坝区人民法院 | E171: 重庆市沙坪坝区人民法院 | F171: 行政政法处 | G171: 一级
A172: 604001 | B172: 166 | C172: 重庆市九龙坡区人民法院 | E172: 重庆市九龙坡区人民法院 | F172: 行政政法处 | G172: 一级
A173: 605001 | B173: 167 | C173: 重庆市大渡口区人民法院 | E173: 重庆市大渡口区人民法院 | F173: 行政政法处 | G173: 一级
A174: 606001 | B174: 168 | C174: 重庆市南岸区人民法院 | E174: 重庆市南岸区人民法院 | F174: 行政政法处 | G174: 一级
A175: 607001 | B175: 169 | C175: 重庆市北碚区人民法院 | E175: 重庆市北碚区人民法院 | F175: 行政政法处 | G175: 一级
A176: 608001 | B176: 170 | C176: 重庆市巴南区人民法院 | E176: 重庆市巴南区人民法院 | F176: 行政政法处 | G176: 一级
A177: 609001 | B177: 171 | C177: 重庆市渝北区人民法院 | E177: 重庆市渝北区人民法院 | F177: 行政政法处 | G177: 一级
A178: 610001 | B178: 172 | C178: 重庆市涪陵区人民法院 | E178: 重庆市涪陵区人民法院 | F178: 行政政法处 | G178: 一级
A179: 611001 | B179: 173 | C179: 重庆市长寿区人民法院 | E179: 重庆市长寿区人民法院 | F179: 行政政法处 | G179: 一级
A180: 612001 | B180: 174 | C180: 重庆市江津区人民法院 | E180: 重庆市江津区人民法院 | F180: 行政政法处 | G180: 一级
A181: 613001 | B181: 175 | C181: 重庆市合川区人民法院 | E181: 重庆市合川区人民法院 | F181: 行政政法处 | G181: 一级
A182: 614001 | B182: 176 | C182: 重庆市永川区人民法院 | E182: 重庆市永川区人民法院 | F182: 行政政法处 | G182: 一级
A183: 615001 | B183: 177 | C183: 重庆市南川区人民法院 | E183: 重庆市南川区人民法院 | F183: 行政政法处 | G183: 一级
A184: 616001 | B184: 178 | C184: 重庆市綦江区人民法院 | E184: 重庆市綦江区人民法院 | F184: 行政政法处 | G184: 一级
A185: 617001 | B185: 179 | C185: 重庆市潼南区人民法院 | E185: 重庆市潼南区人民法院 | F185: 行政政法处 | G185: 一级
A186: 618001 | B186: 180 | C186: 重庆市铜梁区人民法院 | E186: 重庆市铜梁区人民法院 | F186: 行政政法处 | G186: 一级
A187: 619001 | B187: 181 | C187: 重庆市大足区人民法院 | E187: 重庆市大足区人民法院 | F187: 行政政法处 | G187: 一级
A188: 620001 | B188: 182 | C188: 重庆市荣昌区人民法院 | E188: 重庆市荣昌区人民法院 | F188: 行政政法处 | G188: 一级
A189: 621001 | B189: 183 | C189: 重庆市璧山区人民法院 | E189: 重庆市璧山区人民法院 | F189: 行政政法处 | G189: 一级
A190: 622001 | B190: 184 | C190: 重庆市万州区人民法院 | E190: 重庆市万州区人民法院 | F190: 行政政法处 | G190: 一级
A191: 623001 | B191: 185 | C191: 梁平县人民法院 | E191: 梁平县人民法院 | F191: 行政政法处 | G191: 一级
A192: 624001 | B192: 186 | C192: 城口县人民法院 | E192: 城口县人民法院 | F192: 行政政法处 | G192: 一级
A193: 625001 | B193: 187 | C193: 丰都县人民法院 | E193: 丰都县人民法院 | F193: 行政政法处 | G193: 一级
A194: 626001 | B194: 188 | C194: 垫江县人民法院 | E194: 垫江县人民法院 | F194: 行政政法处 | G194: 一级
A195: 627001 | B195: 189 | C195: 忠县人民法院 | E195: 忠县人民法院 | F195: 行政政法处 | G195: 一级
A196: 628001 | B196: 190 | C196: 重庆市开州区人民法院 | E196: 重庆市开州区人民法院 | F196: 行政政法处 | G196: 一级
A197: 629001 | B197: 191 | C197: 云阳县人民法院 | E197: 云阳县人民法院 | F197: 行政政法处 | G197: 一级
A198: 630001 | B198: 192 | C198: 奉节县人民法院 | E198: 奉节县人民法院 | F198: 行政政法处 | G198: 一级
A199: 631001 | B199: 193 | C199: 巫山县人民法院 | E199: 巫山县人民法院 | F199: 行政政法处 | G199: 一级
A200: 632001 | B200: 194 | C200: 巫溪县人民法院 | E200: 巫溪县人民法院 | F200: 行政政法处 | G200: 一级
A201: 633001 | B201: 195 | C201: 重庆市黔江区人民法院 | E201: 重庆市黔江区人民法院 | F201: 行政政法处 | G201: 一级
A202: 634001 | B202: 196 | C202: 武隆县人民法院 | E202: 武隆县人民法院 | F202: 行政政法处 | G202: 一级
... 56 more rows

Sheet 1 财政拨款收支总表
A1: 附件3-1
A2: 重庆市綦江区科学技术局财政拨款收支总表
G4: 单位：万元
A5: 收入 | C5: 支出
A6: 项目 | B6: 预算数 | C6: 项目 | D6: 合计 | E6: 一般公共预算财政拨款 | F6: 政府性基金预算财政拨款 | G6: 国有资本经营预算财政拨款
A7: 一、本年收入 | B7: =B8 -> 1,493.17 | C7: 一、本年支出 | D7: =E7 -> 1,566.09 | E7: 1,566.09
A8: 一般公共预算拨款 | B8: 1,493.17 | C8: 科学技术支出 | D8: =E8+F8+G8 -> 1,484.03 | E8: =1.287408+56.0705+2.437475+11.309752+1412.921085 -> 1,484.03
A9: 政府性基金预算拨款 | C9: 社会保障和就业支出 | D9: =E9+F9+G9 -> 51.38 | E9: =1.812+49.565013 -> 51.38
A10: 国有资本经营预算拨款 | C10: 卫生健康支出 | D10: =E10+F10+G10 -> 16.52 | E10: 16.52
A11: 二、上年结转 | B11: =B12 -> 72.92 | C11: 住房保障支出 | D11: =E11+F11+G11 -> 14.17 | E11: 14.17
A12: 一般公共预算拨款 | B12: 72.92
A13: 政府性基金预算拨款
A14: 国有资本经营预算拨款
C16: 二、结转下年 | D16: =E16+F16+G16 -> 0.00 | E16: =B8+B12-E7 -> 0.00 | F16: =B9+B13-F7 -> 0.00 | G16: =B10+B14-G7 -> 0.00
A18: 收入总数 | B18: =B7+B11 -> 1,566.09 | C18: 支出总数 | D18: =SUM(D7+D16) -> 1,566.09 | E18: =SUM(E7+E16) -> 1,566.09 | F18: =SUM(F7+F16) -> 0.00 | G18: =SUM(G7+G16) -> 0.00

Sheet 2 一般公共预算支出-无上年数
A1: 附件3-2
A2: 重庆市綦江区科学技术局一般公共预算财政拨款支出预算表
E4: 单位：万元
A5: 功能分类科目 | C5: 2021年预算数
A6: 科目编码 | B6: 科目名称 | C6: 小计 | D6: 基本支出 | E6: 项目支出
B7: 合计 | C7: =D7+E7 -> 1493.17 | D7: =D8+D16+D21+D27 -> 344.97 | E7: =E8+E16+E21+E27 -> 1148.20
A8: 206 | B8: 科学技术支出 | C8: =D8+E8 -> 1,412.92 | D8: =D9++D14 -> 264.72 | E8: =E9+E12+E14 -> 1,148.20
A9: 20601 | B9: 科学技术管理事务 | C9: 292.92 | D9: =D10+D11 -> 264.72 | E9: =E10+E11 -> 28.20
A10: 2060101 | B10: 行政运行 | C10: 178.38 | D10: 166.68 | E10: 11.70
A11: 2060199 | B11: 其他科学技术管理事务支出 | C11: 114.54 | D11: 98.04 | E11: 16.50
A12: 20604 | B12: 技术研究与开发 | C12: 150.00 | D12: =D13 -> 0.00 | E12: =E13 -> 150.00
A13: 2060499 | B13: 其他技术研究与开发支出 | C13: 150.00 | E13: 150.00
A14: 20605 | B14: 技术条件与服务 | C14: 970.00 | D14: =D15 -> 0.00 | E14: =E15 -> 970.00
A15: 2060502 | B15: 技术创新服务体系 | C15: 970.00 | E15: 970.00
A16: 208 | B16: 社会保障和就业支出 | C16: 49.57 | D16: =D17 -> 49.57
A17: 20805 | B17: 行政事业单位离退休 | C17: 49.57 | D17: =SUM(D18:D20) -> 49.57
A18: 2080505 | B18: 机关事业单位基本养老保险缴费支出 | C18: 18.89 | D18: 18.89
A19: 2080506 | B19: 机关事业单位职业年金缴费支出 | C19: 9.44 | D19: 9.44
A20: 2080599 | B20: 其他行政事业单位离退休支出 | C20: 21.23 | D20: 21.23
A21: 210 | B21: 卫生健康支出 | C21: 16.52 | D21: =D22 -> 16.52
A22: 21011 | B22: 行政事业单位医疗 | C22: 16.52 | D22: =SUM(D23:D26) -> 16.52
A23: 2101101 | B23: 行政单位医疗 | C23: 8.41 | D23: 8.41
A24: 2101102 | B24: 事业单位医疗 | C24: 3.87 | D24: 3.87
A25: 2101103 | B25: 公务员医疗补助 | C25: 3.28 | D25: 3.28
A26: 2101199 | B26: 其他行政事业单位医疗支出 | C26: 0.96 | D26: 0.96
A27: 221 | B27: 住房保障支出 | C27: 14.17 | D27: =D28 -> 14.17
A28: 22102 | B28: 住房改革支出 | C28: 14.17 | D28: =D29 -> 14.17
A29: 2210201 | B29: 住房公积金 | C29: 14.17 | D29: 14.17
A30: 备注：本表反映2021年当年一般公共预算财政拨款支出情况。

Sheet 3 一般公共预算财政基本支出
A1: 附件3-3
A2: 重庆市綦江区科学技术局一般公共预算财政拨款基本支出预算表
E4: 单位：万元
A5: 经济分类科目 | C5: 2021年基本支出
A6: 科目编码 | B6: 科目名称 | C6: 合计 | D6: 人员经费 | E6: 公用经费
B7: 合计 | C7: =D7+E7 -> 344.97 | D7: =D8+D50 -> 271.20 | E7: =E21 -> 73.77
A8: 301 | B8: 工资福利支出 | C8: =D8+E8 -> 249.20 | D8: =SUM(D9:D20) -> 249.20
A9: 30101 | B9: 基本工资 | C9: 61.46 | D9: 61.46
A10: 30102 | B10: 津贴补贴 | C10: 31.20 | D10: 31.20
A11: 30103 | B11: 奖金 | C11: 29.22 | D11: 29.22
A12: 30107 | B12: 绩效工资 | C12: 49.02 | D12: 49.02
A13: 30108 | B13: 机关事业单位基本养老保险缴费 | C13: 18.89 | D13: 18.89
A14: 30109 | B14: 职业年金缴费 | C14: 9.44 | D14: 9.44
A15: 30110 | B15: 职工基本医疗保险缴费 | C15: 12.28 | D15: 12.28
A16: 30111 | B16: 公务员医疗补助缴费 | C16: 0.00
A17: 30112 | B17: 其他社会保障缴费 | C17: 0.94 | D17: 0.94
A18: 30113 | B18: 住房公积金 | C18: 14.17 | D18: 14.17
A19: 30114 | B19: 医疗费 | C19: 2.24 | D19: 2.24
A20: 30199 | B20: 其他工资福利支出 | C20: 20.34 | D20: 20.34
A21: 302 | B21: 商品和服务支出 | C21: 73.77 | E21: =SUM(E22:E49) -> 73.77
A22: 30201 | B22: 办公费 | C22: 17.30 | E22: 17.30
A23: 30202 | B23: 印刷费 | C23: 1.00 | E23: 1.00
A24: 30203 | B24: 咨询费 | C24: 0.00 | E24: 0.00
A25: 30204 | B25: 手续费 | C25: 0.00
A26: 30205 | B26: 水费 | C26: 0.00
A27: 30206 | B27: 电费 | C27: 0.00
A28: 30207 | B28: 邮电费 | C28: 2.50 | E28: 2.50
A29: 30208 | B29: 取暖费 | C29: 0.00
A30: 30209 | B30: 物业管理费 | C30: 0.00
A31: 30211 | B31: 国内差旅费 | C31: 25.20 | E31: 25.20
A32: 30212 | B32: 因公出国（境）费用 | C32: 0.00
A33: 30213 | B33: 维修(护)费 | C33: 0.00
A34: 30214 | B34: 租赁费 | C34: 0.00
A35: 30215 | B35: 会议费 | C35: 2.00 | E35: 2.00
A36: 30216 | B36: 培训费 | C36: 1.68 | E36: 1.68
A37: 30217 | B37: 公务接待费 | C37: 2.00 | E37: 2.00
A38: 30218 | B38: 专用材料费 | C38: 0.00
A39: 30223 | B39: 购买服务 | C39: 0.00
A40: 30224 | B40: 被装购置费 | C40: 0.00
A41: 30225 | B41: 专用燃料费 | C41: 0.00
A42: 30226 | B42: 劳务费 | C42: 5.00 | E42: 5.00
A43: 30227 | B43: 委托业务费 | C43: 0.00
A44: 30228 | B44: 工会经费 | C44: 2.24 | E44: 2.24
A45: 30229 | B45: 福利费 | C45: 1.84 | E45: 1.84
A46: 30231 | B46: 公务用车运行维护费 | C46: 3.50 | E46: 3.50
A47: 30239 | B47: 其他交通费用 | C47: 8.27 | E47: 8.27
A48: 30240 | B48: 税金及附加费用 | C48: 0.00
A49: 30299 | B49: 其他商品和服务支出 | C49: 1.23 | E49: 1.23
A50: 303 | B50: 对个人和家庭的补助 | C50: 22.00 | D50: =SUM(D51:D57) -> 22.00
A51: 30305 | B51: 生活补助 | C51: 0.00
A52: 30306 | B52: 救济费 | C52: 0.00
A53: 30307 | B53: 医疗费 | C53: 2.00 | D53: 2.00
A54: 30308 | B54: 助学金 | C54: 0.00
A55: 30309 | B55: 奖励金 | C55: 0.00 | D55: 0.00
A56: 30310 | B56: 生产补贴 | C56: 0.00
A57: 30399 | B57: 其他对个人和家庭的补助支出 | C57: 20.00 | D57: 20.00

Sheet 4 一般公用预算“三公”经费支出表-无上年数
A1: 附件3-4
A2: 重庆市綦江区科学技术局一般公共预算“三公”经费支出表
F4: 单位：万元
A5: 2021年预算数
A6: 合计 | B6: 因公出国（境）费 | C6: 公务用车购置及运行费 | F6: 公务接待费
C7: 小计 | D7: 公务用车购置费 | E7: 公务用车运行费
A8: =B8+C8+F8 -> 6.00 | B8: 0 | C8: =SUM(D8:E8) -> 3.50 | D8: 0 | E8: 3.50 | F8: 2.50

Sheet 5 政府性基金预算支出表
A1: 附件3-5
A2: 重庆市綦江区科学技术局政府性基金预算支出表
E4: 单位：万元
A5: 科目编码 | B5: 科目名称 | C5: 本年政府性基金预算财政拨款支出
C6: 合计 | D6: 基本支出 | E6: 项目支出
A7: 0 | B7: 0 | C7: 0 | D7: 0 | E7: 0
A8: （备注：本单位无政府性基金收支，故此表无数据。）

Sheet 6 部门收支总表
A1: 附件3-6
A2: 重庆市綦江区科学技术局部门收支总表
D4: 单位：万元
A5: 收入 | C5: 支出
A6: 项目 | B6: 预算数 | C6: 项目 | D6: 预算数
A7: 一般公共预算拨款收入 | B7: 1,493.17 | C7: 一、本年支出 | D7: =SUM(D8:D19) -> 1,566.09
A8: 政府性基金预算拨款收入 | C8: 科学技术支出 | D8: =1.287408+56.0705+2.437475+11.309752+1412.921085 -> 1,484.03
A9: 国有资本经营预算拨款收入 | C9: 社会保障和就业支出 | D9: =49.57+1.81 -> 51.38
A10: 事业收入预算 | C10: 卫生健康支出 | D10: 16.52
A11: 事业单位经营收入预算 | C11: 交通运输支出
A12: 其他收入预算 | C12: 资源勘探信息等支出
C13: 城乡社区支出
C14: 住房保障支出 | D14: 14.17
A25: 本年收入合计 | B25: =SUM(B7:B17) -> 1,493.17 | C25: 本年支出合计 | D25: =D7 -> 1,566.09
A26: 用事业基金弥补收支差额 | C26: 结转下年
A27: 上年结转 | B27: 72.92
A28: 收入总计 | B28: =B25+B27 -> 1,566.09 | C28: 支出总计 | D28: =D25+D26 -> 1,566.09

Sheet 7 部门收入总表
A1: 附件3-7
A2: 重庆市綦江区科学技术局部门收入总表
L4: 单位：万元
A5: 科目 | C5: 合计 | D5: 上年结转 | E5: 一般公共预算拨款收入 | F5: 政府性基金预算拨款收入 | G5: 国有资本经营预算拨款收入 | H5: 事业收入预算 | J5: 事业单位经营收入预算 | K5: 其他收入预算 | L5: 用事业基金弥补收支差额
A6: 科目编码 | B6: 科目名称 | H6: 非教育收费收入预算 | I6: 教育收费收预算入
B7: 合计 | C7: =D7+E7 -> 1,566.09 | D7: =D8+D16+D21+D27 -> 72.92 | E7: =E8+E16+E21+E27 -> 1,493.17
A8: 206 | B8: 科学技术支出 | C8: =D8+E8 -> 1,484.02 | D8: =D9+D12+D14 -> 71.11 | E8: 1,412.92
A9: 20601 | B9: 科学技术管理事务 | C9: 350.28 | D9: =D10+D11 -> 57.36 | E9: 292.92
A10: 2060101 | B10: 行政运行 | C10: 179.67 | D10: 1.29 | E10: 178.38
A11: 2060199 | B11: 其他科学技术管理事务支出 | C11: 170.61 | D11: 56.07 | E11: 114.54
A12: 20604 | B12: 技术研究与开发 | C12: 152.44 | D12: =D13 -> 2.44 | E12: 150.00
A13: 2060499 | B13: 其他技术研究与开发支出 | C13: 152.44 | D13: 2.44 | E13: 150.00
A14: 20605 | B14: 技术条件与服务 | C14: 981.31 | D14: =D15 -> 11.31 | E14: 970.00
A15: 2060502 | B15: 技术创新服务体系 | C15: 981.31 | D15: 11.31 | E15: 970.00
A16: 208 | B16: 社会保障和就业支出 | C16: 51.38 | D16: =D17 -> 1.81 | E16: 49.57
A17: 20805 | B17: 行政事业单位离退休 | C17: 51.38 | D17: =SUM(D18:D20) -> 1.81 | E17: 49.57
A18: 2080505 | B18: 机关事业单位基本养老保险缴费支出 | C18: 18.89 | E18: 18.89
A19: 2080506 | B19: 机关事业单位职业年金缴费支出 | C19: 9.44 | E19: 9.44
A20: 2080599 | B20: 其他行政事业单位离退休支出 | C20: 23.04 | D20: 1.81 | E20: 21.23
A21: 210 | B21: 卫生健康支出 | C21: 16.52 | E21: 16.52
A22: 21011 | B22: 行政事业单位医疗 | C22: 16.52 | E22: 16.52
A23: 2101101 | B23: 行政单位医疗 | C23: 8.41 | E23: 8.41
A24: 2101102 | B24: 事业单位医疗 | C24: 3.87 | E24: 3.87
A25: 2101103 | B25: 公务员医疗补助 | C25: 3.28 | E25: 3.28
A26: 2101199 | B26: 其他行政事业单位医疗支出 | C26: 0.96 | E26: 0.96
A27: 221 | B27: 住房保障支出 | C27: 14.17 | E27: 14.17
A28: 22102 | B28: 住房改革支出 | C28: 14.17 | E28: 14.17
A29: 2210201 | B29: 住房公积金 | C29: 14.17 | E29: 14.17

Sheet 8 部门支出总表
A1: 附件3-8
A2: 重庆市綦江区科学技术局部门支出总表
H4: 单位：万元
A5: 科目编码 | B5: 科目名称 | C5: 合计 | D5: 基本支出 | E5: 项目支出 | F5: 上缴上级支出 | G5: 事业单位经营支出 | H5: 对下级单位补助支出
B6: 合计 | C6: =D6+E6 -> 1,566.09 | D6: =D7+D15+D20+D26 -> 348.07 | E6: =E7+E15+E20+E26 -> 1,218.02
A7: 206 | B7: 科学技术支出 | C7: =D7+E7 -> 1,484.03 | D7: =D8++D13 -> 266.01 | E7: =E8+E11+E13 -> 1,218.02
A8: 20601 | B8: 科学技术管理事务 | C8: 350.28 | D8: =D9+D10 -> 266.01 | E8: =E9+E10 -> 84.27
A9: 2060101 | B9: 行政运行 | C9: 179.67 | D9: =166.678687+1.287408 -> 167.97 | E9: =11.7 -> 11.70
A10: 2060199 | B10: 其他科学技术管理事务支出 | C10: 170.61 | D10: =98.042398 -> 98.04 | E10: =16.5+56.0705 -> 72.57
A11: 20604 | B11: 技术研究与开发 | C11: 152.44 | D11: =D12 -> 0.00 | E11: =E12 -> 152.44
A12: 2060499 | B12: 其他技术研究与开发支出 | C12: 152.44 | E12: =150+2.44 -> 152.44
A13: 20605 | B13: 技术条件与服务 | C13: 981.31 | D13: =D14 -> 0.00 | E13: =E14 -> 981.31
A14: 2060502 | B14: 技术创新服务体系 | C14: 981.31 | E14: =970+11.31 -> 981.31
A15: 208 | B15: 社会保障和就业支出 | C15: 51.38 | D15: =D16 -> 51.38
A16: 20805 | B16: 行政事业单位离退休 | C16: 51.38 | D16: =SUM(D17:D19) -> 51.38
A17: 2080505 | B17: 机关事业单位基本养老保险缴费支出 | C17: 18.89 | D17: 18.89
A18: 2080506 | B18: 机关事业单位职业年金缴费支出 | C18: 9.44 | D18: 9.44
A19: 2080599 | B19: 其他行政事业单位离退休支出 | C19: 23.04 | D19: =21.232469+1.81 -> 23.04
A20: 210 | B20: 卫生健康支出 | C20: 16.52 | D20: =D21 -> 16.52
A21: 21011 | B21: 行政事业单位医疗 | C21: 16.52 | D21: =SUM(D22:D25) -> 16.52
A22: 2101101 | B22: 行政单位医疗 | C22: 8.41 | D22: 8.41
A23: 2101102 | B23: 事业单位医疗 | C23: 3.87 | D23: 3.87
A24: 2101103 | B24: 公务员医疗补助 | C24: 3.28 | D24: 3.28
A25: 2101199 | B25: 其他行政事业单位医疗支出 | C25: 0.96 | D25: 0.96
A26: 221 | B26: 住房保障支出 | C26: 14.17 | D26: =D27 -> 14.17
A27: 22102 | B27: 住房改革支出 | C27: 14.17 | D27: =D28 -> 14.17
A28: 2210201 | B28: 住房公积金 | C28: 14.17 | D28: 14.17

Sheet 9 政府采购明细表
A1: 附件3-9
A2: 重庆市綦江区科学技术局政府采购预算明细表
K3: 单位：万元
A4: 项目 | B4: 合计 | C4: 上年结转 | D4: 一般公共预算拨款收入 | E4: 政府性基金预算拨款收入 | F4: 国有资本经营预算拨款收入 | G4: 事业收入预算 | I4: 事业单位经营收入预算 | J4: 其他收入预算 | K4: 用事业基金弥补收支差额
G5: 非教育收费收入预算 | H5: 教育收费收入预算
A6: 合计 | B6: =C6+D6 -> 63.89 | C6: =C7+C8 -> 60.89 | D6: 3
A7: 货物类 | B7: =C7+D7 -> 6.01 | C7: 3.01 | D7: 3
A8: 服务类 | B8: =C8+D8 -> 57.88 | C8: 57.88
A9: 工程类

Sheet 10 部门整体绩效目标表
A1: 附件3-10
A2: 2021年部门（单位）预算整体绩效目标表
F3: 单位：万元
A4: 部门（单位）名称 | B4: 重庆市綦江区科学技术局 | D4: 支出预算总量 | E4: 1493.17
D5: 其中：部门预算支出 | E5: =E4 -> 1493.17
A6: 当年整体绩效目标 | B6: 1.保障机关正常运转；2.对获得高新技术企业、企业技术中心、人才引进及培训、国家和市级众创空间和孵化器等认定的企业进行补助；3.为实现进科技型企业培育计划目标，开展业务培训、采购服务；4.开展区级星创天地、专家大院培育，对培育的项目实施补助；5.支持我区众创空间和孵化器
A7: 绩效指标 | B7: 指标名称 | C7: 指标权重 | D7: 计量单位 | E7: 指标性质 | F7: 指标值
B8: 编制人数 | C8: 5 | D8: 个 | E8: = | F8: 14
B9: 单位实有人数 | C9: 5 | D9: 个 | E9: ≥ | F9: 14
B10: 科技创新扶持补助企业 | C10: 20 | D10: 个 | E10: ≥ | F10: 60
B11: 新增科技型企业 | C11: 10 | D11: 个 | E11: ≥ | F11: 100
B12: 培育区级星创天地 | C12: 10 | D12: 个 | E12: ≥ | F12: 2
B13: 培育专家大院 | C13: 10 | D13: 个 | E13: ≥ | F13: 3
B14: 组织开展綦江区创新创业大赛 | C14: 10 | D14: 次 | E14: ≥ | F14: 1
B15: 固定资产利用率 | C15: 5 | D15: % | E15: ≥ | F15: 95
B16: 培训 | C16: 10 | D16: 次 | E16: ≥ | F16: 5
B17: 满意率 | C17: 5 | D17: % | E17: ≥ | F17: 90
B18: 资金执行率 | C18: 10 | D18: % | E18: ≥ | F18: 96
A19: 备注：没有分配到部门、街道事项的项目，支出预算总量应等于部门预算支出

Sheet 11 区级项目资金绩效目标表1（2021年研发投入专项资金）
A1: 附件3-11
A2: 2021年区级项目资金绩效目标表
G3: 单位：万元
A4: 项目名称 | B4: 2021年研发投入专项资金 | E4: 业务主管部门 | F4: 重庆市綦江区科学技术局
A5: 当年预算 | B5: 100 | E5: 本级支出 | F5: 100
E6: 分配到部门、街道
A7: 项目概况 | B7: 围绕“以大数据智能化为引领的创新驱动发展战略”行动计划，促进全社会增强研发投入，重点支持研发创新平台、研发团队科研项目，加强创新能力培训。
A8: 立项依据 | B8: 重庆市人民政府办公厅《关于进一步做好促进企业创新有关工作的通知》（渝府办发〔2019〕58号）、《重庆市加大研发经费投入工作方案》（渝府办发[2016]24号）、《关于印发重庆市高端研发资源引进培育实施方案的通知》（渝府办发〔2016〕86号）。
A9: 当年绩效目标 | B9: 实施重点研发项目；举办创新能力培育。
A10: 绩效指标 | B10: 指标名称 | C10: 指标权重 | D10: 计量单位 | E10: 指标性质 | F10: 指标值 | G10: 是否核心指标
B11: 实施重点研发项目 | C11: 15 | D11: 个 | E11: ≥ | F11: 5 | G11: 是
B12: 举办创新能力培育 | C12: 15 | D12: 期 | E12: ≥ | F12: 1 | G12: 是
B13: 项目完成时效 | C13: 15 | D13: 月 | E13: = | F13: 12 | G13: 是
B14: 研发投入专项资金 | C14: 15 | D14: 万元 | E14: = | F14: 120 | G14: 是
B15: 研发经费投入 | C15: 15 | D15: 万元 | E15: ≥ | F15: 1000 | G15: 否
B16: 创新能力培训 | C16: 15 | D16: 人 | E16: ≥ | F16: 400 | G16: 否
B17: 满意率 | C17: 10 | D17: % | E17: ≥ | F17: 90 | G17: 否
A21: 备注：分配到部门、街道的资金指由部门、街镇列支的项目，不包括分配后应由区本级列支的资金

Sheet 11 区级项目资金绩效目标表2（创业种子投资资金管理费）
A1: 附件3-11
A2: 2021年区级项目资金绩效目标表
G3: 单位：万元
A4: 项目名称 | B4: 创业种子投资资金管理费 | E4: 业务主管部门 | F4: 重庆市綦江区科学技术局
A5: 当年预算 | B5: 50 | E5: 本级支出 | F5: 50
E6: 分配到部门、街道
A7: 项目概况 | B7: 改善创业环境，对种子投资管理所需费用。
A8: 立项依据 | B8: 根据上级有关文件精神，确保创业种子投资有序开展，所需费用。
A9: 当年绩效目标 | B9: 2020年1-5月，开展创新型小微企业和创业团队评选工作；2020年6-10月，与创新型小微企业和创业团队签订贷款或入股协议。
A10: 绩效指标 | B10: 指标名称 | C10: 指标权重 | D10: 计量单位 | E10: 指标性质 | F10: 指标值 | G10: 是否核心指标
B11: 培训人次 | C11: 30 | D11: 人 | E11: ≥ | F11: 200 | G11: 是
B12: 项目完成时效 | C12: 20 | D12: 月 | E12: = | F12: 12 | G12: 是
B13: 创业种子投资资金管理费 | C13: 20 | D13: 万元 | E13: = | F13: 50 | G13: 是
B14: 辖区内科普知识覆盖率 | C14: 15 | D14: % | E14: ≥ | F14: 96 | G14: 否
B15: 满意率 | C15: 15 | D15: % | E15: ≥ | F15: 90 | G15: 否
A21: 备注：分配到部门、街道的资金指由部门、街镇列支的项目，不包括分配后应由区本级列支的资金

Sheet 11 区级项目资金绩效目标表3（科技型企业培育及创新生态打造）
A1: 附件3-11
A2: 2021年区级项目资金绩效目标表
G3: 单位：万元
A4: 项目名称 | B4: 科技型企业培育及创新生态打造 | E4: 业务主管部门 | F4: 重庆市綦江区科学技术局
A5: 当年预算 | B5: 100 | E5: 本级支出 | F5: 100
E6: 分配到部门、街道
A7: 项目概况 | B7: 1.为实现进科技型企业培育计划目标，开展业务培训、采购服务等。2.、用于区级科技特派员开展科技创新创业与服务的工作补助、交通差旅费用和培训费用，以及专家咨询费、资料费、科技示范、宣传报道等相关费用。3.为实现农业科技园区建设目标，开展区级农业科技示范基地培育，对培育的基地实施补助。4.开展科普宣传，建设区级科普基地。5.开展区级星创天地、专家大院培育，对培育的项目实施补助。6.开展2022年重庆市英才计划（科技创新）推选及綦江区科技创新领军人才（团队）评选。7 .为进一步规范我区科研项目管理，提高项目管理效率，保证项目管理的公开、公正、透明和科学，拟制定《綦江区科研项目管理办法》。8.办法对科研项目立项、评审、验收、结题等环节进行培训并邀请专家对重点项目进行评审，预算专家评审费和业务培训会。
A8: 立项依据 | B8: 1.市政府办公厅《关于大力培育高新技术企业的实施意见》（渝府办发〔2016〕90号）、重庆市科学技术局关于印发《重庆市科技型企业入库培育实施细则》的通知（渝科局发〔2019〕136号）。2.《中共重庆市綦江区委重庆市綦江区人民政府关于印发重庆市綦江区实施乡村振兴战略行动计划的通知》（綦江委发〔2018〕8号）、《重庆市农业科技园区建设实施方案》（渝科委发〔2015〕119号）、《重庆市綦江区科普基地创建及管理办法》（綦科局〔2019〕24号）、市科技局《重庆市星创天地管理办法》（渝科局发〔2018〕34号）、《重庆英才计划5个子项目实施方案的通知》（渝委人才〔2019〕2号）、《重庆市綦江区科教兴区和人才强区行动实施方案》（綦委人才〔2019〕1号）。3.《重庆市科研项目管理办法》（渝科局发2019〔11〕号） 。
A9: 当年绩效目标 | B9: 1.科技型企业达到1000家，国家高新技术企业达到100家。2.选派51名科技特派员到全区45个重点村开展乡村振兴科技服务工作，为重点村提供技术服务。3.2021年培育农业科技示范基地5个。4.开展2021年科技科技活动周宣传，建设区级科普基地5个。5.开展2021年区级星创天地、专家大院培育，培育2个区级星创天地、3个专家大院。6.开展2022年重庆市英才计划（科技创新）推选及綦江区科技创新领军人才（团队）评选，重庆市英才计划（科技创新）推选2个团队、綦江区科技创新领军人才（团队）评选8个团队。7.预计申报项目达到60个，结题项目达到50个。
A10: 绩效指标 | B10: 指标名称 | C10: 指标权重 | D10: 计量单位 | E10: 指标性质 | F10: 指标值 | G10: 是否核心指标
B11: 新增科技型企业 | C11: 10 | D11: 个 | E11: ≥ | F11: 100 | G11: 是
B12: 区级星创天地、专家大院 | C12: 10 | D12: 个 | E12: ≥ | F12: 2 | G12: 是
B13: 科研结题项目 | C13: 10 | D13: 个 | E13: ≥ | F13: 50 | G13: 是
B14: 项目完成时效 | C14: 20 | D14: 月 | E14: = | F14: 12 | G14: 是
B15: 科技型企业培育及创新生态打造 | C15: 20 | D15: 万元 | E15: = | F15: 100 | G15: 是
B16: 辖区内科普知识覆盖率 | C16: 15 | D16: % | E16: ≥ | F16: 90 | G16: 否
B17: 满意率 | C17: 15 | D17: % | E17: ≥ | F17: 90 | G17: 否
A21: 备注：分配到部门、街道的资金指由部门、街镇列支的项目，不包括分配后应由区本级列支的资金

Sheet 11 区级项目资金绩效目标表4（众创空间发展扶持专项经费）
A1: 附件3-11
A2: 2021年区级项目资金绩效目标表
G3: 单位：万元
A4: 项目名称 | B4: 众创空间发展扶持专项经费 | E4: 业务主管部门 | F4: 重庆市綦江区科学技术局
A5: 当年预算 | B5: 20 | E5: 本级支出 | F5: 20
E6: 分配到部门、街道
A7: 项目概况 | B7: 推进大众创业万众创新，继续扎实开展各类创新创业赛事活动，加快培育一批创新创业平台。
A8: 立项依据 | B8: 根据《重庆市綦江区科技创新扶持办法》第六条支持企业建设具有较强创新孵化功能的科技平台。以及《綦江区众创空间认定管理办法》、《綦江区科技企业孵化器认定管理办法是》给予运行绩效好的众创空间和孵化器给予运行资金后补助。
A9: 当年绩效目标 | B9: 支持我区众创空间和孵化器,组织开展綦江区创新创业大赛等，支持众创企业促进会开展创新创业活动。
A10: 绩效指标 | B10: 指标名称 | C10: 指标权重 | D10: 计量单位 | E10: 指标性质 | F10: 指标值 | G10: 是否核心指标
B11: 组织开展綦江区创新创业大赛 | C11: 15 | D11: 次 | E11: ≥ | F11: 1 | G11: 是
B12: 加强众创空间运行管理 | C12: 15 | D12: 次 | E12: = | F12: 1 | G12: 是
B13: 年度预算执行率 | C13: 20 | D13: % | E13: ≥ | F13: 96 | G13: 是
B14: 众创空间发展扶持专项经费 | C14: 20 | D14: 万元 | E14: = | F14: 20 | G14: 是
B15: 辖区内科普知识覆盖率 | C15: 15 | D15: % | E15: ≥ | F15: 90 | G15: 否
B16: 满意率 | C16: 15 | D16: % | E16: ≥ | F16: 90 | G16: 否
A21: 备注：分配到部门、街道的资金指由部门、街镇列支的项目，不包括分配后应由区本级列支的资金

Sheet 11 区级项目资金绩效目标表5（科技创新扶持专项经费)
A1: 附件3-11
A2: 2021年区级项目资金绩效目标表
G3: 单位：万元
A4: 项目名称 | B4: 科技创新扶持专项经费 | E4: 业务主管部门 | F4: 重庆市綦江区科学技术局
A5: 当年预算 | B5: 550 | E5: 本级支出 | F5: 550
E6: 分配到部门、街道
A7: 项目概况 | B7: 对获得高新技术企业、高新技术产品、名牌产品、知名产品等认定的企业进行补助。
A8: 立项依据 | B8: 《重庆市綦江区科技创新扶持办法》（綦江府发〔2020〕19号）
A9: 当年绩效目标 | B9: 市级企业技术中心4个，市级中小企业技术中心15个，企业引进高级人才50人，国家高新技术企业100个，市级科普基地2个，企业职工技能50人，市级及孵化器3个，市级重点实验室1个。
A10: 绩效指标 | B10: 指标名称 | C10: 指标权重 | D10: 计量单位 | E10: 指标性质 | F10: 指标值 | G10: 是否核心指标
B11: 项目扶持补助项目 | C11: 20 | D11: 个 | E11: ≥ | F11: 150 | G11: 是
B12: 项目完成时效 | C12: 20 | D12: 月 | E12: = | F12: 12 | G12: 是
B13: 科技创新扶持专项经费 | C13: 20 | D13: 万元 | E13: = | F13: 550 | G13: 是
B14: 市级企业技术中心 | C14: 5 | D14: 个 | E14: ≥ | F14: 4 | G14: 否
B15: 市级中小企业技术中心 | C15: 5 | D15: 个 | E15: ≥ | F15: 15 | G15: 否
B16: 国家高新技术企业 | C16: 5 | D16: 个 | E16: ≥ | F16: 100 | G16: 否
B17: 引进高级人才 | C17: 15 | D17: 个 | E17: ≥ | F17: 10 | G17: 否
B18: 满意率 | C18: 10 | D18: % | E18: ≥ | F18: 90 | G18: 否
A21: 备注：分配到部门、街道的资金指由部门、街镇列支的项目，不包括分配后应由区本级列支的资金

Sheet 11 区级项目资金绩效目标表6（国家高新区创建工作经费)
A1: 附件3-11
A2: 2021年区级项目资金绩效目标表
G3: 单位：万元
A4: 项目名称 | B4: 国家高新区创建工作经费 | E4: 业务主管部门 | F4: 重庆市綦江区科学技术局
A5: 当年预算 | B5: 300 | E5: 本级支出 | F5: 300
E6: 分配到部门、街道
A7: 项目概况 | B7: 创建国家产业技术开发区
A8: 立项依据 | B8: 中共重庆市綦江区委办公室重庆市綦江区人民政府办公室关于成立中共綦江国家高新技术产业开发区创建指挥部临时党委和綦江国家高新技术产业开发区创建指挥部的通知（綦江委办〔2020〕31号）
A9: 当年绩效目标 | B9: 成功创建国家产业技术开发区
A10: 绩效指标 | B10: 指标名称 | C10: 指标权重 | D10: 计量单位 | E10: 指标性质 | F10: 指标值 | G10: 是否核心指标
B11: 示范点 | C11: 15 | D11: 个 | E11: ≥ | F11: 5 | G11: 是
B12: 专题片 | C12: 15 | D12: 条 | E12: ≥ | F12: 1 | G12: 是
B13: 项目完成时效 | C13: 20 | D13: 万元 | E13: = | F13: 12 | G13: 是
B14: 国家高新区创建专项资金 | C14: 20 | D14: 个 | E14: = | F14: 300 | G14: 是
B15: 培训人员 | C15: 15 | D15: 个 | E15: ≥ | F15: 300 | G15: 否
B16: 满意率 | C16: 15 | D16: % | E16: ≥ | F16: 90 | G16: 否
A21: 备注：分配到部门、街道的资金指由部门、街镇列支的项目，不包括分配后应由区本级列支的资金

Sheet 11 区级项目资金绩效目标表7（运转性项目-非在编人)
A1: 附件3-11
A2: 2021年区级项目资金绩效目标表
G3: 单位：万元
A4: 项目名称 | B4: 运转性项目----（非在编人员--限额内非在编人员） | E4: 业务主管部门 | F4: 重庆市綦江区科学技术局
A5: 当年预算 | B5: 5.2 | E5: 本级支出 | F5: 5.2
E6: 分配到部门、街道
A7: 项目概况 | B7: 弥补限额内非在编人员经费。
A8: 立项依据 | B8: 根据《綦江区财政局关于编制2021年部门预算的通知》里人员补丁政策编制。
A9: 当年绩效目标 | B9: 保障限额内非在编人员经费。
A10: 绩效指标 | B10: 指标名称 | C10: 指标权重 | D10: 计量单位 | E10: 指标性质 | F10: 指标值 | G10: 是否核心指标
B11: 限额内非在编人员 | C11: 30 | D11: 个 | E11: ≥ | F11: 1 | G11: 是
B12: 项目完成时效 | C12: 20 | D12: 月 | E12: = | F12: 12 | G12: 是
B13: 限额内非在编人员资金 | C13: 20 | D13: 万元 | E13: = | F13: 5.2 | G13: 是
B14: 工作效率 | C14: 15 | D14: % | E14: ≥ | F14: 90 | G14: 否
B15: 满意率 | C15: 15 | D15: % | E15: ≥ | F15: 90 | G15: 否
A21: 备注：分配到部门、街道的资金指由部门、街镇列支的项目，不包括分配后应由区本级列支的资金

Sheet 11 区级项目资金绩效目标表8（运转性项目-独立运行补丁)
A1: 附件3-11
A2: 2021年区级项目资金绩效目标表
G3: 单位：万元
A4: 项目名称 | B4: 运转性项目--独立运行补丁 | E4: 业务主管部门 | F4: 重庆市綦江区科学技术局
A5: 当年预算 | B5: 10 | E5: 本级支出 | F5: 10
E6: 分配到部门、街道
A7: 项目概况 | B7: 弥补公用经费不足
A8: 立项依据 | B8: 根据上级有关文件精神，弥补公用经费不足
A9: 当年绩效目标 | B9: 项目实施完，严格按要求支出
A10: 绩效指标 | B10: 指标名称 | C10: 指标权重 | D10: 计量单位 | E10: 指标性质 | F10: 指标值 | G10: 是否核心指标
B11: 编制人数 | C11: 30 | D11: 人 | E11: ≥ | F11: 7 | G11: 是
B12: 项目完成时效 | C12: 20 | D12: 月 | E12: = | F12: 12 | G12: 是
B13: 独立运行补丁 | C13: 20 | D13: 万元 | E13: = | F13: 10 | G13: 是
B14: 辖区内科普知识覆盖率 | C14: 15 | D14: % | E14: ≥ | F14: 90 | G14: 否
B15: 满意率 | C15: 15 | D15: % | E15: ≥ | F15: 90 | G15: 否
A21: 备注：分配到部门、街道的资金指由部门、街镇列支的项目，不包括分配后应由区本级列支的资金

Sheet 11 区级项目资金绩效目标表9（运转性项目-人员补丁)
A1: 附件3-11
A2: 2021年区级项目资金绩效目标表
G3: 单位：万元
A4: 项目名称 | B4: 运转性项目-人员补丁 | E4: 业务主管部门 | F4: 重庆市綦江区科学技术局
A5: 当年预算 | B5: 6.5 | E5: 本级支出 | F5: 6.5
E6: 分配到部门、街道
A7: 项目概况 | B7: 根据《綦江区财政局关于编制2021年部门预算的通知》里人员补丁政策编制，保障单位开支。
A8: 立项依据 | B8: 根据《綦江区财政局关于编制2021年部门预算的通知》里人员补丁政策编制。
A9: 当年绩效目标 | B9: 保证本单位各项工作正常运转。
A10: 绩效指标 | B10: 指标名称 | C10: 指标权重 | D10: 计量单位 | E10: 指标性质 | F10: 指标值 | G10: 是否核心指标
B11: 独立运行单位个数 | C11: 25 | D11: 个 | E11: ≥ | F11: 1 | G11: 是
B12: 年度预算执行率 | C12: 25 | D12: % | E12: = | F12: 96 | G12: 是
B13: 人员补丁 | C13: 20 | D13: 万元 | E13: = | F13: 6.5 | G13: 是
B14: 辖区内科普知识覆盖率 | C14: 15 | D14: % | E14: ≥ | F14: 90 | G14: 否
B15: 满意率 | C15: 15 | D15: % | E15: ≥ | F15: 90 | G15: 否
A21: 备注：分配到部门、街道的资金指由部门、街镇列支的项目，不包括分配后应由区本级列支的资金

Sheet 11 区级项目资金绩效目标表10（信息中心-人员补丁)
A1: 附件3-11
A2: 2021年区级项目资金绩效目标表
G3: 单位：万元
A4: 项目名称 | B4: 运转性项目-人员补丁 | E4: 业务主管部门 | F4: 重庆市綦江区科学技术局
A5: 当年预算 | B5: 6.5 | E5: 本级支出 | F5: 6.5
E6: 分配到部门、街道
A7: 项目概况 | B7: 根据《綦江区财政局关于编制2021年部门预算的通知》里人员补丁政策编制，保障单位开支。
A8: 立项依据 | B8: 根据《綦江区财政局关于编制2021年部门预算的通知》里人员补丁政策编制。
A9: 当年绩效目标 | B9: 保证科技信息中心各项工作正常运转。
A10: 绩效指标 | B10: 指标名称 | C10: 指标权重 | D10: 计量单位 | E10: 指标性质 | F10: 指标值 | G10: 是否核心指标
B11: 人员补丁人数 | C11: 25 | D11: 个 | E11: ≥ | F11: 1 | G11: 是
B12: 年度预算执行率 | C12: 25 | D12: % | E12: = | F12: 96 | G12: 是
B13: 人员补丁 | C13: 20 | D13: 万元 | E13: = | F13: 6.5 | G13: 是
B14: 辖区内科普知识覆盖率 | C14: 15 | D14: % | E14: ≥ | F14: 90 | G14: 否
B15: 满意率 | C15: 15 | D15: % | E15: ≥ | F15: 90 | G15: 否
A21: 备注：分配到部门、街道的资金指由部门、街镇列支的项目，不包括分配后应由区本级列支的资金
